[Event "Live Chess"]
[Site "Chess.com"]
[Date "2023.05.21"]
[Round "-"]
[White "HoarseyHorsey"]
[Black "MarkLim1"]
[Result "0-1"]
[WhiteElo "1447"]
[BlackElo "1685"]
[TimeControl "300"]
[EndTime "0:01:12 PDT"]
[Termination "MarkLim1 won by resignation"]

1. d4 {[%clk 0:04:58.9]} 1... Nf6 {[%clk 0:04:58.8]} 2. c4 {[%clk 0:04:57.3]}
2... e6 {[%clk 0:04:58]} 3. Nc3 {[%clk 0:04:56]} 3... d5 {[%clk 0:04:57]} 4.
cxd5 {[%clk 0:04:54.3]} 4... Nxd5 {[%clk 0:04:56]} 5. e4 {[%clk 0:04:53.3]} 5...
Nxc3 {[%clk 0:04:55.1]} 6. bxc3 {[%clk 0:04:53.2]} 6... c5 {[%clk 0:04:54.4]} 7.
Nf3 {[%clk 0:04:51.9]} 7... cxd4 {[%clk 0:04:53.6]} 8. cxd4 {[%clk 0:04:51.8]}
8... Bb4+ {[%clk 0:04:52.9]} 9. Bd2 {[%clk 0:04:51]} 9... Bxd2+ {[%clk
0:04:52.2]} 10. Qxd2 {[%clk 0:04:50.9]} 10... O-O {[%clk 0:04:51.7]} 11. Bc4
{[%clk 0:04:49.4]} 11... Nd7 {[%clk 0:04:50.9]} 12. O-O {[%clk 0:04:47.5]} 12...
b6 {[%clk 0:04:50.3]} 13. d5 {[%clk 0:04:35.4]} 13... Nc5 {[%clk 0:04:47.8]} 14.
Rad1 {[%clk 0:04:29.8]} 14... Bb7 {[%clk 0:04:46.4]} 15. dxe6 {[%clk 0:04:24.4]}
15... Nxe6 {[%clk 0:04:36.8]} 16. Bd5 {[%clk 0:04:05.4]} 16... Nc5 {[%clk
0:04:28.2]} 17. e5 {[%clk 0:03:56.8]} 17... Bxd5 {[%clk 0:04:24.4]} 18. Qxd5
{[%clk 0:03:55.5]} 18... Qxd5 {[%clk 0:04:22.7]} 19. Rxd5 {[%clk 0:03:55.4]}
19... Rfd8 {[%clk 0:04:17.9]} 20. Rfd1 {[%clk 0:03:53.5]} 20... Rxd5 {[%clk
0:04:14.8]} 21. Rxd5 {[%clk 0:03:52.4]} 21... Kf8 {[%clk 0:04:11.5]} 22. g3
{[%clk 0:03:42.5]} 22... Ke7 {[%clk 0:04:09.2]} 23. Nd4 {[%clk 0:03:25.7]} 23...
h6 {[%clk 0:04:02.1]} 24. f4 {[%clk 0:03:23.2]} 24... Ne6 {[%clk 0:03:33.4]} 25.
Nc6+ {[%clk 0:03:03.7]} 25... Ke8 {[%clk 0:03:30.1]} 26. a3 {[%clk 0:02:36.6]}
26... Nd8 {[%clk 0:03:23.4]} 27. Nxd8 {[%clk 0:02:32.3]} 27... Rxd8 {[%clk
0:03:22.1]} 28. Rxd8+ {[%clk 0:02:27.2]} 28... Kxd8 {[%clk 0:03:21.2]} 29. Kf2
{[%clk 0:02:26.9]} 29... Kd7 {[%clk 0:03:17.7]} 30. Ke3 {[%clk 0:02:26.5]} 30...
g6 {[%clk 0:03:13.6]} 31. Kd4 {[%clk 0:02:25.3]} 31... Kc6 {[%clk 0:03:10.6]}
32. h4 {[%clk 0:02:13]} 32... h5 {[%clk 0:03:01.3]} 33. Ke4 {[%clk 0:02:00.1]}
33... b5 {[%clk 0:02:51.8]} 34. f5 {[%clk 0:01:59.1]} 34... gxf5+ {[%clk
0:02:46]} 35. Kxf5 {[%clk 0:01:58.4]} 35... a5 {[%clk 0:02:43.2]} 36. Kf6 {[%clk
0:01:56.4]} 36... b4 {[%clk 0:02:42]} 37. Kxf7 {[%clk 0:01:50.3]} 37... bxa3
{[%clk 0:02:30.9]} 38. e6 {[%clk 0:01:49.4]} 38... a2 {[%clk 0:02:30.2]} 39. e7
{[%clk 0:01:48.7]} 39... a1=Q {[%clk 0:02:29.6]} 40. e8=Q+ {[%clk 0:01:47.8]}
40... Kb6 {[%clk 0:02:28.6]} 41. Qe6+ {[%clk 0:01:39]} 41... Kb5 {[%clk
0:02:26.5]} 42. Qd7+ {[%clk 0:01:35.6]} 42... Kc4 {[%clk 0:02:23.4]} 43. Qc6+
{[%clk 0:01:32.5]} 43... Kd3 {[%clk 0:02:21.5]} 44. Qd5+ {[%clk 0:01:28.7]}
44... Ke2 {[%clk 0:02:15.1]} 45. Qxh5+ {[%clk 0:01:24.1]} 45... Kf2 {[%clk
0:02:13.7]} 46. Qf5+ {[%clk 0:00:54.8]} 46... Kxg3 {[%clk 0:02:11.9]} 47. Qg5+
{[%clk 0:00:52.1]} 47... Kf3 {[%clk 0:01:50.9]} 48. Qf5+ {[%clk 0:00:27.9]}
48... Ke3 {[%clk 0:01:48]} 49. Qh3+ {[%clk 0:00:19.5]} 49... Ke4 {[%clk
0:01:40.4]} 50. Qg4+ {[%clk 0:00:18.3]} 50... Kd5 {[%clk 0:01:38.1]} 51. Qg5+
{[%clk 0:00:17.3]} 51... Kc6 {[%clk 0:01:27.4]} 52. Qf6+ {[%clk 0:00:16.4]}
52... Qxf6+ {[%clk 0:01:18.7]} 53. Kxf6 {[%clk 0:00:16.3]} 53... a4 {[%clk
0:01:18]} 54. h5 {[%clk 0:00:16.2]} 54... a3 {[%clk 0:01:17.2]} 55. h6 {[%clk
0:00:16.1]} 55... a2 {[%clk 0:01:16.6]} 56. h7 {[%clk 0:00:16]} 56... a1=Q+
{[%clk 0:01:16]} 0-1

[Event "Live Chess"]
[Site "Chess.com"]
[Date "2023.05.21"]
[Round "-"]
[White "MJMykh"]
[Black "f4nomore"]
[Result "1-0"]
[WhiteElo "1025"]
[BlackElo "1417"]
[TimeControl "300"]
[EndTime "0:01:21 PDT"]
[Termination "MJMykh won on time"]

1. e4 {[%clk 0:04:58.1]} 1... g6 {[%clk 0:04:59.9]} 2. Nf3 {[%clk 0:04:56.1]}
2... Bg7 {[%clk 0:04:58.7]} 3. d4 {[%clk 0:04:54.3]} 3... d6 {[%clk 0:04:57.5]}
4. Nc3 {[%clk 0:04:53.5]} 4... Nf6 {[%clk 0:04:55.3]} 5. Be2 {[%clk 0:04:53.4]}
5... O-O {[%clk 0:04:53.6]} 6. O-O {[%clk 0:04:52.5]} 6... Nbd7 {[%clk
0:04:52.5]} 7. h3 {[%clk 0:04:51.6]} 7... c5 {[%clk 0:04:50.8]} 8. dxc5 {[%clk
0:04:49.6]} 8... Nxc5 {[%clk 0:04:48.9]} 9. Bd3 {[%clk 0:04:42.6]} 9... Nxd3
{[%clk 0:04:43.9]} 10. Qxd3 {[%clk 0:04:39.9]} 10... a6 {[%clk 0:04:40.3]} 11.
Be3 {[%clk 0:04:36.4]} 11... b5 {[%clk 0:04:35.2]} 12. a3 {[%clk 0:04:34.4]}
12... Bb7 {[%clk 0:04:22.4]} 13. Bd2 {[%clk 0:04:18.4]} 13... Bc6 {[%clk
0:04:02.8]} 14. Bg5 {[%clk 0:04:08.6]} 14... a5 {[%clk 0:03:57.1]} 15. Bxf6
{[%clk 0:04:07.2]} 15... Bxf6 {[%clk 0:03:54]} 16. b4 {[%clk 0:03:55.6]} 16...
axb4 {[%clk 0:03:50.8]} 17. axb4 {[%clk 0:03:55]} 17... Rxa1 {[%clk 0:03:47.8]}
18. Rxa1 {[%clk 0:03:53.7]} 18... Qc7 {[%clk 0:03:43.5]} 19. Rf1 {[%clk
0:03:51.1]} 19... Bb7 {[%clk 0:03:33]} 20. Nxb5 {[%clk 0:03:44.5]} 20... Qb6
{[%clk 0:03:28.9]} 21. c4 {[%clk 0:03:37.8]} 21... Ba6 {[%clk 0:03:16.1]} 22.
Re1 {[%clk 0:03:24.3]} 22... Rb8 {[%clk 0:03:12.5]} 23. Nc3 {[%clk 0:03:05.9]}
23... Bxc3 {[%clk 0:02:52.7]} 24. Qxc3 {[%clk 0:03:01.8]} 24... Qxb4 {[%clk
0:02:50.6]} 25. Qxb4 {[%clk 0:03:00.4]} 25... Rxb4 {[%clk 0:02:48.2]} 26. Rc1
{[%clk 0:02:55.6]} 26... Bxc4 {[%clk 0:02:38.5]} 27. e5 {[%clk 0:02:46.8]} 27...
dxe5 {[%clk 0:02:24.8]} 28. Nxe5 {[%clk 0:02:45.9]} 28... Be6 {[%clk 0:02:21.9]}
29. Nd3 {[%clk 0:02:37.8]} 29... Rd4 {[%clk 0:02:16.2]} 30. Ne1 {[%clk
0:02:29.4]} 30... Bf5 {[%clk 0:02:09.2]} 31. Nf3 {[%clk 0:02:27.2]} 31... Rd7
{[%clk 0:01:59.6]} 32. Ne5 {[%clk 0:02:23.8]} 32... Rd6 {[%clk 0:01:54.5]} 33.
g4 {[%clk 0:02:00]} 33... Be6 {[%clk 0:01:50.4]} 34. f3 {[%clk 0:01:52.6]} 34...
Kg7 {[%clk 0:01:43.5]} 35. Kg2 {[%clk 0:01:48.2]} 35... Ra6 {[%clk 0:01:40.3]}
36. Kg3 {[%clk 0:01:44.8]} 36... Ra3 {[%clk 0:01:24.9]} 37. Rc7 {[%clk 0:01:37]}
37... Kf6 {[%clk 0:01:22.8]} 38. Nd7+ {[%clk 0:01:24.8]} 38... Bxd7 {[%clk
0:01:13.6]} 39. Rxd7 {[%clk 0:01:23.7]} 39... e6 {[%clk 0:01:12.4]} 40. Rd6
{[%clk 0:01:22]} 40... Ra1 {[%clk 0:01:08.4]} 41. h4 {[%clk 0:01:17.8]} 41... h5
{[%clk 0:01:04.9]} 42. g5+ {[%clk 0:01:15.4]} 42... Kg7 {[%clk 0:01:02.5]} 43.
Kf4 {[%clk 0:01:10.7]} 43... Ra4+ {[%clk 0:00:59.8]} 44. Kg3 {[%clk 0:01:09.1]}
44... Ra3 {[%clk 0:00:53.1]} 45. Kf4 {[%clk 0:01:05.6]} 45... Ra4+ {[%clk
0:00:51.5]} 46. Kg3 {[%clk 0:01:04.2]} 46... Ra5 {[%clk 0:00:47.1]} 47. Kf4
{[%clk 0:01:02.3]} 47... Rf5+ {[%clk 0:00:45.1]} 48. Kg3 {[%clk 0:00:59.2]}
48... e5 {[%clk 0:00:40.2]} 49. Rd5 {[%clk 0:00:49]} 49... e4 {[%clk 0:00:25.2]}
50. Rxf5 {[%clk 0:00:43.2]} 50... gxf5 {[%clk 0:00:22.6]} 51. fxe4 {[%clk
0:00:42.6]} 51... fxe4 {[%clk 0:00:20.1]} 52. Kf4 {[%clk 0:00:42.2]} 52... f6
{[%clk 0:00:14.8]} 53. gxf6+ {[%clk 0:00:36.9]} 53... Kxf6 {[%clk 0:00:13]} 54.
Kxe4 {[%clk 0:00:36.5]} 54... Kg6 {[%clk 0:00:08.9]} 55. Kf4 {[%clk 0:00:36.3]}
55... Kf6 {[%clk 0:00:07.4]} 56. Kg3 {[%clk 0:00:34.9]} 56... Kf5 {[%clk
0:00:05.8]} 57. Kf3 {[%clk 0:00:34.3]} 57... Ke5 {[%clk 0:00:01.9]} 58. Kg3
{[%clk 0:00:33]} 58... Kf5 {[%clk 0:00:00.8]} 59. Kh3 {[%clk 0:00:31.7]} 1-0

[Event "Live Chess"]
[Site "Chess.com"]
[Date "2023.05.21"]
[Round "-"]
[White "Mikhail_Golubev"]
[Black "Biranidun"]
[Result "0-1"]
[WhiteElo "2472"]
[BlackElo "2571"]
[TimeControl "300"]
[EndTime "0:01:22 PDT"]
[Termination "Biranidun won on time"]

1. e4 {[%clk 0:04:57.3]} 1... c5 {[%clk 0:04:58.8]} 2. Nf3 {[%clk 0:04:56.2]}
2... d6 {[%clk 0:04:58.1]} 3. d4 {[%clk 0:04:55.2]} 3... cxd4 {[%clk 0:04:58]}
4. Nxd4 {[%clk 0:04:54.7]} 4... Nf6 {[%clk 0:04:57.7]} 5. Nc3 {[%clk 0:04:54]}
5... g6 {[%clk 0:04:57.3]} 6. Be3 {[%clk 0:04:52]} 6... Bg7 {[%clk 0:04:57]} 7.
f3 {[%clk 0:04:51.4]} 7... O-O {[%clk 0:04:56.6]} 8. Qd2 {[%clk 0:04:50.6]} 8...
Nc6 {[%clk 0:04:56.4]} 9. Bc4 {[%clk 0:04:49.7]} 9... Bd7 {[%clk 0:04:55.5]} 10.
h4 {[%clk 0:04:47.9]} 10... Rc8 {[%clk 0:04:53.4]} 11. Bb3 {[%clk 0:04:45.8]}
11... h5 {[%clk 0:04:50.5]} 12. O-O-O {[%clk 0:04:36]} 12... Ne5 {[%clk
0:04:49.6]} 13. Kb1 {[%clk 0:04:29.4]} 13... Nc4 {[%clk 0:04:41.4]} 14. Bxc4
{[%clk 0:04:28.4]} 14... Rxc4 {[%clk 0:04:41.3]} 15. g4 {[%clk 0:04:26.7]} 15...
hxg4 {[%clk 0:04:38.7]} 16. h5 {[%clk 0:04:25.3]} 16... Nxh5 {[%clk 0:04:33.9]}
17. Rdg1 {[%clk 0:04:13.9]} 17... Nf6 {[%clk 0:04:31.1]} 18. b3 {[%clk
0:02:56.2]} 18... Rxc3 {[%clk 0:04:19.9]} 19. Qxc3 {[%clk 0:02:55.1]} 19... gxf3
{[%clk 0:04:18.9]} 20. Bh6 {[%clk 0:02:39.8]} 20... Nxe4 {[%clk 0:04:04.2]} 21.
Qe3 {[%clk 0:02:29.5]} 21... f2 {[%clk 0:03:36.7]} 22. Rg2 {[%clk 0:02:22.5]}
22... d5 {[%clk 0:01:21.4]} 23. Bxg7 {[%clk 0:02:12.2]} 23... Kxg7 {[%clk
0:01:21.3]} 24. Qh6+ {[%clk 0:01:54.7]} 24... Kf6 {[%clk 0:01:20.5]} 25. Qf4+
{[%clk 0:01:52.3]} 25... Kg7 {[%clk 0:01:19.6]} 26. Rgh2 {[%clk 0:01:39.1]}
26... Rh8 {[%clk 0:00:55.2]} 27. Kb2 {[%clk 0:00:25.1]} 27... Rxh2 {[%clk
0:00:49]} 28. Qxh2 {[%clk 0:00:24]} 28... e5 {[%clk 0:00:34.9]} 29. Qh6+ {[%clk
0:00:13]} 29... Kf6 {[%clk 0:00:34]} 30. Qh4+ {[%clk 0:00:10.9]} 30... g5 {[%clk
0:00:31.5]} 31. Qh6+ {[%clk 0:00:08.5]} 31... Ke7 {[%clk 0:00:31]} 32. Nf3
{[%clk 0:00:06.5]} 32... Qb6 {[%clk 0:00:28.3]} 33. Qh2 {[%clk 0:00:00.7]} 33...
Qd4+ {[%clk 0:00:26.9]} 0-1

[Event "Live Chess"]
[Site "Chess.com"]
[Date "2023.05.21"]
[Round "-"]
[White "AttackingSnowLeopard"]
[Black "Stanbad1"]
[Result "1-0"]
[WhiteElo "2191"]
[BlackElo "2389"]
[TimeControl "300"]
[EndTime "0:01:35 PDT"]
[Termination "AttackingSnowLeopard won by resignation"]

1. d4 {[%clk 0:04:56.9]} 1... Nf6 {[%clk 0:04:49.6]} 2. c4 {[%clk 0:04:55.3]}
2... g6 {[%clk 0:04:47.2]} 3. Nc3 {[%clk 0:04:53.7]} 3... Bg7 {[%clk 0:04:46.8]}
4. e4 {[%clk 0:04:52.7]} 4... d6 {[%clk 0:04:46.4]} 5. Be2 {[%clk 0:04:51.7]}
5... O-O {[%clk 0:04:46]} 6. Be3 {[%clk 0:04:50.1]} 6... c5 {[%clk 0:04:43.9]}
7. d5 {[%clk 0:04:48.7]} 7... b5 {[%clk 0:04:43]} 8. cxb5 {[%clk 0:04:46.2]}
8... a6 {[%clk 0:04:41.9]} 9. a4 {[%clk 0:04:45.1]} 9... axb5 {[%clk 0:04:39.6]}
10. axb5 {[%clk 0:04:43]} 10... Rxa1 {[%clk 0:04:37.2]} 11. Qxa1 {[%clk
0:04:42.9]} 11... Nbd7 {[%clk 0:04:36.3]} 12. Nf3 {[%clk 0:04:30.3]} 12... Nb6
{[%clk 0:04:34]} 13. O-O {[%clk 0:04:24.3]} 13... Bd7 {[%clk 0:04:33]} 14. Qa7
{[%clk 0:04:16.4]} 14... Qb8 {[%clk 0:04:20.9]} 15. Ra1 {[%clk 0:04:13.3]} 15...
e6 {[%clk 0:04:12.7]} 16. Qxb8 {[%clk 0:03:41.2]} 16... Rxb8 {[%clk 0:04:09.6]}
17. dxe6 {[%clk 0:03:40.5]} 17... fxe6 {[%clk 0:04:08.8]} 18. e5 {[%clk
0:03:39.4]} 18... Nfd5 {[%clk 0:04:04.6]} 19. Bd2 {[%clk 0:03:24.8]} 19... dxe5
{[%clk 0:04:01.6]} 20. Ne4 {[%clk 0:03:20.5]} 20... c4 {[%clk 0:03:59.1]} 21.
Nc5 {[%clk 0:03:15.2]} 21... Bxb5 {[%clk 0:03:57.7]} 22. Nxe6 {[%clk 0:03:10.7]}
22... e4 {[%clk 0:03:56.6]} 23. Nfd4 {[%clk 0:02:58.8]} 23... Bd7 {[%clk
0:03:51.7]} 24. Nxg7 {[%clk 0:02:57]} 24... Kxg7 {[%clk 0:03:50.2]} 25. Ra7
{[%clk 0:02:38.8]} 25... Kf8 {[%clk 0:03:47.7]} 26. h4 {[%clk 0:02:18.2]} 26...
h5 {[%clk 0:03:21.1]} 27. Bg5 {[%clk 0:02:12.1]} 27... Ke8 {[%clk 0:03:09.6]}
28. f3 {[%clk 0:01:53.6]} 28... exf3 {[%clk 0:03:07.4]} 29. Bxf3 {[%clk
0:01:52.1]} 29... c3 {[%clk 0:03:04.5]} 30. bxc3 {[%clk 0:01:48.5]} 30... Nxc3
{[%clk 0:03:04.3]} 31. Nc6 {[%clk 0:01:44.8]} 31... Rc8 {[%clk 0:02:57.5]} 32.
Ne5 {[%clk 0:01:42.5]} 32... Bf5 {[%clk 0:02:54.1]} 33. Bc6+ {[%clk 0:01:36.2]}
33... Rxc6 {[%clk 0:02:31.8]} 34. Nxc6 {[%clk 0:01:35]} 34... Nbd5 {[%clk
0:02:30.3]} 35. Ra8+ {[%clk 0:01:30.3]} 35... Kd7 {[%clk 0:02:27.4]} 36. Ne5+
{[%clk 0:01:29.4]} 36... Ke6 {[%clk 0:02:21.3]} 37. Nf3 {[%clk 0:01:24.3]} 37...
Ne2+ {[%clk 0:02:17.2]} 38. Kf2 {[%clk 0:01:23]} 38... Nef4 {[%clk 0:02:13.3]}
39. Nd4+ {[%clk 0:01:21.6]} 39... Ke5 {[%clk 0:02:12.1]} 40. Nxf5 {[%clk
0:01:19.3]} 40... Kxf5 {[%clk 0:02:12]} 41. Bxf4 {[%clk 0:01:18.6]} 41... Nxf4
{[%clk 0:02:10.5]} 42. g3 {[%clk 0:01:18]} 42... Nd3+ {[%clk 0:02:09.5]} 43. Ke3
{[%clk 0:01:17.1]} 43... Ne5 {[%clk 0:02:07.8]} 44. Ra5 {[%clk 0:01:15.8]} 44...
Kf6 {[%clk 0:02:06]} 45. Ke4 {[%clk 0:01:12.3]} 45... Nc4 {[%clk 0:02:03.2]} 46.
Ra6+ {[%clk 0:01:10.4]} 46... Kg7 {[%clk 0:02:02.2]} 47. Kd5 {[%clk 0:01:07.5]}
47... Ne3+ {[%clk 0:02:00.9]} 48. Ke6 {[%clk 0:01:06.5]} 48... Nf5 {[%clk
0:01:58.8]} 49. Ra7+ {[%clk 0:01:05.7]} 49... Kh6 {[%clk 0:01:57.6]} 50. Ra3
{[%clk 0:01:03.5]} 50... Nd4+ {[%clk 0:01:56.7]} 51. Kf6 {[%clk 0:01:00.1]}
51... Nf5 {[%clk 0:01:55.9]} 52. Ra8 {[%clk 0:00:51.8]} 52... Kh7 {[%clk
0:01:53.3]} 53. Ra7+ {[%clk 0:00:51.3]} 53... Kh6 {[%clk 0:01:52.4]} 54. Ra3
{[%clk 0:00:49.3]} 54... Kh7 {[%clk 0:01:48.1]} 55. Kf7 {[%clk 0:00:48]} 55...
Nh6+ {[%clk 0:01:42.4]} 56. Kf8 {[%clk 0:00:46.2]} 56... Nf5 {[%clk 0:01:41.4]}
57. Ra7+ {[%clk 0:00:40.1]} 57... Kh6 {[%clk 0:01:40.1]} 58. Kg8 {[%clk
0:00:39.8]} 58... g5 {[%clk 0:01:34.9]} 59. Ra6+ {[%clk 0:00:38.5]} 1-0

[Event "Live Chess"]
[Site "Chess.com"]
[Date "2023.05.21"]
[Round "-"]
[White "elephantgerrald"]
[Black "pseudocyst"]
[Result "0-1"]
[WhiteElo "613"]
[BlackElo "1930"]
[TimeControl "300"]
[EndTime "0:01:41 PDT"]
[Termination "pseudocyst won by checkmate"]

1. d4 {[%clk 0:04:57]} 1... d5 {[%clk 0:04:58.7]} 2. Nc3 {[%clk 0:04:55]} 2...
Nc6 {[%clk 0:04:58.6]} 3. Nxd5 {[%clk 0:04:53.4]} 3... Bf5 {[%clk 0:04:58.5]} 4.
Nc3 {[%clk 0:04:50.3]} 4... Qxd4 {[%clk 0:04:56.5]} 5. Qxd4 {[%clk 0:04:48.4]}
5... Nxd4 {[%clk 0:04:56.4]} 6. Kd2 {[%clk 0:04:30.3]} 6... O-O-O {[%clk
0:04:53.9]} 7. Ke3 {[%clk 0:04:26]} 7... Nxc2+ {[%clk 0:04:51.8]} 8. Kf4 {[%clk
0:04:24.8]} 8... g6 {[%clk 0:04:47.7]} 9. Nf3 {[%clk 0:04:20.7]} 9... Nxa1
{[%clk 0:04:46.1]} 10. Ne5 {[%clk 0:04:19.3]} 10... Nh6 {[%clk 0:04:38.3]} 11.
Kf3 {[%clk 0:04:14.6]} 11... Bg7 {[%clk 0:04:36.5]} 12. Bxh6 {[%clk 0:04:11.6]}
12... Bxe5 {[%clk 0:04:33.4]} 13. e4 {[%clk 0:04:08.1]} 13... Be6 {[%clk
0:04:28.2]} 14. Nb5 {[%clk 0:03:54.9]} 14... a6 {[%clk 0:04:25.6]} 15. Nc3
{[%clk 0:03:51.1]} 15... Nc2 {[%clk 0:04:22.3]} 16. Ke2 {[%clk 0:03:23.6]} 16...
Nd4+ {[%clk 0:04:20.2]} 17. Ke1 {[%clk 0:03:19.7]} 17... f6 {[%clk 0:04:13.5]}
18. f4 {[%clk 0:03:15.5]} 18... Bd6 {[%clk 0:04:10.3]} 19. Bg7 {[%clk
0:03:06.4]} 19... Rhg8 {[%clk 0:04:08.3]} 20. Bxf6 {[%clk 0:03:04.5]} 20... exf6
{[%clk 0:04:07.1]} 21. e5 {[%clk 0:03:03.1]} 21... fxe5 {[%clk 0:04:06.2]} 22.
fxe5 {[%clk 0:03:00.8]} 22... Bxe5 {[%clk 0:04:06.1]} 23. Kf2 {[%clk 0:02:58]}
23... Rdf8+ {[%clk 0:04:04.4]} 24. Ke3 {[%clk 0:02:56.4]} 24... Nf5+ {[%clk
0:04:03.3]} 25. Ke4 {[%clk 0:02:54.9]} 25... Bd6 {[%clk 0:04:02.3]} 26. Bxa6
{[%clk 0:02:52.1]} 26... bxa6 {[%clk 0:04:01]} 27. Nd5 {[%clk 0:02:51]} 27...
Bxd5+ {[%clk 0:03:58.2]} 28. Kxd5 {[%clk 0:02:50]} 28... Kd7 {[%clk 0:03:58.1]}
29. b4 {[%clk 0:02:46.9]} 29... c6+ {[%clk 0:03:57.2]} 30. Kc4 {[%clk
0:02:44.8]} 30... Re8 {[%clk 0:03:57.1]} 31. a4 {[%clk 0:02:42]} 31... Re4+
{[%clk 0:03:55.6]} 32. Kc3 {[%clk 0:02:40.7]} 32... Rb8 {[%clk 0:03:53.8]} 33.
b5 {[%clk 0:02:39.3]} 33... axb5 {[%clk 0:03:52.4]} 34. axb5 {[%clk 0:02:38.4]}
34... Rxb5 {[%clk 0:03:52.3]} 35. Ra1 {[%clk 0:02:36.1]} 35... Ke6 {[%clk
0:03:50.5]} 36. Rd1 {[%clk 0:02:33.6]} 36... Ne3 {[%clk 0:03:48.5]} 37. Rxd6+
{[%clk 0:02:23.6]} 37... Kxd6 {[%clk 0:03:48.4]} 38. Kd3 {[%clk 0:02:22.2]}
38... Ke5 {[%clk 0:03:42.8]} 39. g4 {[%clk 0:02:19.7]} 39... Rd5+ {[%clk
0:03:42.7]} 40. Ke2 {[%clk 0:02:16.8]} 40... Nxg4+ {[%clk 0:03:41]} 41. Kf3
{[%clk 0:02:15.5]} 41... Kf5 {[%clk 0:03:40.2]} 42. h3 {[%clk 0:02:13.6]} 42...
Rd3+ {[%clk 0:03:39.6]} 43. Kg2 {[%clk 0:02:11.8]} 43... Re2+ {[%clk 0:03:36]}
44. Kf1 {[%clk 0:02:10.4]} 44... Ra2 {[%clk 0:03:30.6]} 45. hxg4+ {[%clk
0:02:05.3]} 45... Kf4 {[%clk 0:03:30.1]} 46. Ke1 {[%clk 0:02:04]} 46... Rh3
{[%clk 0:03:29.1]} 47. Kf1 {[%clk 0:02:02.5]} 47... Rh1# {[%clk 0:03:28.2]} 0-1

[Event "Live Chess"]
[Site "Chess.com"]
[Date "2023.05.21"]
[Round "-"]
[White "Jo1ts"]
[Black "Singapourfeuj"]
[Result "0-1"]
[WhiteElo "838"]
[BlackElo "2221"]
[TimeControl "300"]
[EndTime "0:01:47 PDT"]
[Termination "Singapourfeuj won by resignation"]

1. d4 {[%clk 0:04:57.6]} 1... Nf6 {[%clk 0:04:58.8]} 2. c4 {[%clk 0:04:52]} 2...
g6 {[%clk 0:04:57.3]} 3. Nc3 {[%clk 0:04:48.9]} 3... Bg7 {[%clk 0:04:55.6]} 4.
e4 {[%clk 0:04:47.3]} 4... d6 {[%clk 0:04:53.9]} 5. Nf3 {[%clk 0:04:46.4]} 5...
O-O {[%clk 0:04:52.7]} 6. d5 {[%clk 0:04:40.1]} 6... e5 {[%clk 0:04:50.1]} 7.
Be3 {[%clk 0:04:38.3]} 7... c6 {[%clk 0:04:47.8]} 8. Bd3 {[%clk 0:04:37.1]} 8...
cxd5 {[%clk 0:04:47]} 9. cxd5 {[%clk 0:04:35.3]} 9... Na6 {[%clk 0:04:46.2]} 10.
Bxa6 {[%clk 0:04:30.8]} 10... bxa6 {[%clk 0:04:45.1]} 11. O-O {[%clk 0:04:26]}
11... Nh5 {[%clk 0:04:44]} 12. Nd2 {[%clk 0:04:02.5]} 12... f5 {[%clk
0:04:41.1]} 13. f3 {[%clk 0:03:55.8]} 13... Nf4 {[%clk 0:04:38]} 14. Bxf4 {[%clk
0:03:53.6]} 14... exf4 {[%clk 0:04:36.9]} 15. Ne2 {[%clk 0:03:44.4]} 15... g5
{[%clk 0:04:34.7]} 16. Qc2 {[%clk 0:03:34.2]} 16... Rb8 {[%clk 0:04:33.6]} 17.
b3 {[%clk 0:03:29.5]} 17... Bd7 {[%clk 0:04:29.4]} 18. Rfc1 {[%clk 0:03:24.5]}
18... Bb5 {[%clk 0:04:25.5]} 19. Nd4 {[%clk 0:03:20.6]} 19... Bxd4+ {[%clk
0:04:22]} 0-1

[Event "Live Chess"]
[Site "Chess.com"]
[Date "2023.05.21"]
[Round "-"]
[White "Doge_Dandolo"]
[Black "Rusty_Bridges"]
[Result "1-0"]
[WhiteElo "1892"]
[BlackElo "1526"]
[TimeControl "300"]
[EndTime "0:02:01 PDT"]
[Termination "Doge_Dandolo won on time"]

1. Nf3 {[%clk 0:04:58.4]} 1... d5 {[%clk 0:04:55.6]} 2. c4 {[%clk 0:04:57.6]}
2... d4 {[%clk 0:04:51.2]} 3. b4 {[%clk 0:04:55.5]} 3... Nf6 {[%clk 0:04:45.6]}
4. g3 {[%clk 0:04:53.7]} 4... Bf5 {[%clk 0:04:38.5]} 5. d3 {[%clk 0:04:51.4]}
5... Nbd7 {[%clk 0:04:34.6]} 6. Bg2 {[%clk 0:04:49.9]} 6... c6 {[%clk
0:04:32.1]} 7. O-O {[%clk 0:04:48.4]} 7... e5 {[%clk 0:04:30.5]} 8. Bg5 {[%clk
0:04:45]} 8... Be7 {[%clk 0:04:27.9]} 9. Nfd2 {[%clk 0:04:42.2]} 9... h6 {[%clk
0:04:22.6]} 10. Bxf6 {[%clk 0:04:38.8]} 10... gxf6 {[%clk 0:04:13.5]} 11. Qb3
{[%clk 0:04:32.1]} 11... h5 {[%clk 0:04:09.6]} 12. Nf3 {[%clk 0:04:25.7]} 12...
Bg4 {[%clk 0:04:03.3]} 13. Nbd2 {[%clk 0:04:17.9]} 13... Nf8 {[%clk 0:03:53.5]}
14. b5 {[%clk 0:04:06.2]} 14... c5 {[%clk 0:03:48.7]} 15. Ne4 {[%clk 0:03:58.2]}
15... Ng6 {[%clk 0:03:28.4]} 16. h3 {[%clk 0:03:46.9]} 16... Bxf3 {[%clk
0:03:15.5]} 17. Bxf3 {[%clk 0:03:40.8]} 17... h4 {[%clk 0:03:14.5]} 18. g4
{[%clk 0:03:38.6]} 18... Nf4 {[%clk 0:03:12.2]} 19. Kh2 {[%clk 0:03:31.8]} 19...
Qd7 {[%clk 0:03:05.7]} 20. Rg1 {[%clk 0:03:23.6]} 20... O-O-O {[%clk 0:02:39]}
21. a4 {[%clk 0:03:14.6]} 21... Kb8 {[%clk 0:02:34]} 22. a5 {[%clk 0:03:12.9]}
22... Rdg8 {[%clk 0:02:28.9]} 23. e3 {[%clk 0:02:45.4]} 23... dxe3 {[%clk
0:02:24.1]} 24. fxe3 {[%clk 0:02:42.5]} 24... Ne6 {[%clk 0:02:09]} 25. Bg2
{[%clk 0:02:35.8]} 25... Ng5 {[%clk 0:01:58.7]} 26. Rgf1 {[%clk 0:02:30.3]}
26... Rg6 {[%clk 0:01:33.3]} 27. Ra2 {[%clk 0:02:18.9]} 27... Rd8 {[%clk
0:01:14.9]} 28. Rd2 {[%clk 0:02:08.3]} 28... Rh6 {[%clk 0:00:57.1]} 29. Nc3
{[%clk 0:02:00.9]} 29... Bd6 {[%clk 0:00:48]} 30. Nd5 {[%clk 0:01:58.9]} 30...
e4+ {[%clk 0:00:36.2]} 31. Kg1 {[%clk 0:01:56.2]} 31... Nf3+ {[%clk 0:00:21.5]}
32. Bxf3 {[%clk 0:01:52.5]} 32... exf3 {[%clk 0:00:21.4]} 33. Rxf3 {[%clk
0:01:49.4]} 33... Bg3 {[%clk 0:00:15.7]} 34. Qc3 {[%clk 0:01:40.1]} 34... f5
{[%clk 0:00:13.8]} 35. Rxf5 {[%clk 0:01:35.4]} 35... Re6 {[%clk 0:00:11.4]} 36.
e4 {[%clk 0:01:33.4]} 36... Qc7 {[%clk 0:00:08.2]} 37. Rd1 {[%clk 0:01:31.5]}
37... Qd6 {[%clk 0:00:05.8]} 38. Qd2 {[%clk 0:01:29.2]} 38... Rg6 {[%clk
0:00:03.3]} 39. Qg2 {[%clk 0:01:27.5]} 39... Re8 {[%clk 0:00:00.7]} 40. Rdf1
{[%clk 0:01:26.1]} 1-0